[Event "Smuk Skak GM Tournament 2024"]
[Site "Skanderborg"]
[Date "2024.08.18"]
[Round "2.1"]
[White "Pajeken, Jakob Leon"]
[Black "Solodovnichenko, Yuri"]
[Result "1/2-1/2"]
[ECO "C23"]
[WhiteElo "2416"]
[BlackElo "2491"]
[Annotator "TA"]
[PlyCount "78"]
[EventDate "2024.08.11"]
[EventType "tourn"]
[EventCountry "DEN"]
[SourceTitle "playchess.com"]
[Source "ChessBase"]
[SourceQuality "1"]
[TimeControl "40/5400+30:1800+30"]

{[%evp 9,78,19,22,19,21,20,14,8,22,-25,0,-18,-4,-19,0,0,0,-16,0,-5,0,-13,-21,-14,0,-2,-7,0,-8,0,0,0,0,0,0,0,7,0,0,0,0,0,14,14,14,0,0,0,0,0,0,0,0,0,0,0,0,0,0,0,0,0,0,0,0,0,0,0,0,0,0]} 1. e4 {[%emt 0:00:20]} e5 {[%emt 0:00:09]} 2. Bc4 {[%emt 0:01:21]} d6 {[%emt 0:03:49]} 3. Nf3 {[%emt 0:02:21]} Nc6 {[%emt 0:02:55]} 4. d4 {[%emt 0:10:21]} Nf6 {[%emt 0:00:39]} 5. dxe5 {[%emt 0:10:40]} dxe5 {[%emt 0:00:21]} 6. Qxd8+ {[%emt 0:01:42]} Nxd8 {[%emt 0:00:06]} 7. O-O {[%emt 0:03:25]} Bd6 {[%emt 0:01:03]} 8. Nc3 {[%emt 0:01:30]} Be6 {[%emt 0:02:28]} 9. Bxe6 {[%emt 0:02:00]} (9. Bb3 $142) 9... Nxe6 $11 {[%emt 0:00:05]} 10. Be3 {[%emt 0:01:43] The position is equal.} Ng4 {[%emt 0:04:32]} 11. Bd2 {[%emt 0:01:33]} O-O-O {[%emt 0:02:57]} 12. h3 {[%emt 0:03:11]} Nf6 {[%emt 0:00:06]} 13. Rfe1 {[%emt 0:06:59]} Rhe8 {[%emt 0:08:35]} 14. Be3 {[%emt 0:10:01] Inhibits Nd4.} a6 {[%emt 0:12:58]} 15. Ng5 {[%emt 0:05:33]} Nxg5 {[%emt 0:01:43]} 16. Bxg5 {[%emt 0:02:13]} Bb4 {[%emt 0:00:15]} 17. Bxf6 {[%emt 0:05:25]} gxf6 {[%emt 0:03:02]} 18. Re3 {[%emt 0:01:00]} Rd2 {[%emt 0:00:06]} 19. Rc1 {[%emt 0:08:47]} Bxc3 {[%emt 0:00:40]} 20. Rxc3 {[%emt 0:00:05][%mdl 4096] Endgame. KRR-KRR} Re2 {[%emt 0:02:52]} 21. Re3 {[%emt 0:00:37]} Rxe3 {[%emt 0:00:08]} 22. fxe3 {[%emt 0:00:04] KR-KR} Kd7 {[%emt 0:00:53]} 23. Rd1+ {[%emt 0:01:04]} Ke6 {[%emt 0:00:51]} 24. Kf2 {[%emt 0:00:31]} h5 {[%emt 0:00:54][%cal Bh7h5,Bh5h4][%mdl 32]} 25. g3 {[%emt 0:00:32]} Rh8 {[%emt 0:03:04]} 26. Kf3 {[%emt 0:01:15]} a5 {[%emt 0:02:23]} 27. a4 {[%emt 0:01:28]} h4 {[%emt 0:01:27]} 28. g4 {[%emt 0:00:09]} Rb8 {[%emt 0:05:04]} 29. c4 {[%emt 0:02:13]} Ra8 {[%emt 0:05:20]} 30. Rd5 {[%emt 0:01:55]} c6 {[%emt 0:06:22]} 31. Rd3 {[%emt 0:00:07]} b6 {[%emt 0:00:10]} 32. b3 {[%emt 0:02:50]} Ke7 {[%emt 0:00:39]} 33. Rd2 {[%emt 0:02:05]} Rb8 {[%emt 0:00:19]} 34. Rd3 {[%emt 0:01:41]} Rb7 {[%emt 0:03:53]} 35. Rd2 {[%emt 0:00:49]} Rd7 {[%emt 0:04:32]} 36. Rxd7+ {[%emt 0:00:22]} Kxd7 {[%emt 0:00:05]} 37. c5 {[%emt 0:00:09]} b5 {[%emt 0:01:58]} (37... bxc5 $5 38. Ke2 $8 c4 39. bxc4 c5 $11) 38. Ke2 {[%emt 0:00:24]} bxa4 {[%emt 0:00:10]} 39. bxa4 {[%emt 0:00:05]} Ke7 {[%emt 0:00:06] A rather calm draw.   Weighted Error Value: White=0.04 (flawless) /Black=0.03 (flawless) .  Mistake:       	White=1     	---        OK:         	White=11    	Black=15     Best:        	White=2     	---} 1/2-1/2

[Event "Smuk Skak GM Tournament 2024"]
[Site "Skanderborg"]
[Date "2024.08.18"]
[Round "2.5"]
[White "Aczel, Gergely"]
[Black "Licznerski, Lukasz"]
[Result "1/2-1/2"]
[ECO "D72"]
[WhiteElo "2485"]
[BlackElo "2427"]
[Annotator "TA"]
[PlyCount "139"]
[EventDate "2024.08.11"]
[EventType "tourn"]
[EventCountry "DEN"]
[SourceTitle "playchess.com"]
[Source "ChessBase"]
[SourceQuality "1"]
[TimeControl "40/5400+30:1800+30"]

{[%evp 61,139,88,66,75,70,67,282,273,264,256,295,284,286,281,294,228,239,165,166,170,168,147,328,188,196,157,146,120,108,29,151,161,155,155,159,159,162,162,154,167,156,54,54,53,52,0,0,0,0,0,0,0,0,0,0,0,0,0,0,0,0,-43,0,0,0,0,0,0,0,0,0,0,0,0,0,0,0,0,0,0]} 1. d4 {[%emt 0:00:04]} Nf6 {[%emt 0:00:34]} 2. c4 {[%emt 0:00:07]} g6 {[%emt 0:00:09]} 3. g3 {[%emt 0:00:07]} Bg7 {[%emt 0:00:04]} 4. Bg2 {[%emt 0:00:05]} d5 {[%emt 0:00:04]} 5. cxd5 {[%emt 0:00:06]} Nxd5 {[%emt 0:00:03]} 6. e4 {[%emt 0:00:08]} Nb6 {[%emt 0:00:05]} 7. Ne2 {[%emt 0:00:07]} e5 {[%emt 0:04:54]} 8. d5 {[%emt 0:05:17]} c6 {[%emt 0:00:04]} 9. O-O {[%emt 0:02:44]} O-O {[%emt 0:00:04]} 10. a4 {[%emt 0:06:07]} a5 {[%emt 0:14:06]} 11. Nec3 {[%emt 0:04:45]} Na6 {[%emt 0:01:52]} 12. Na3 {[%emt 0:00:13]} Nb4 {[%emt 0:12:34]} 13. Be3 {[%emt 0:01:35]} cxd5 {[%emt 0:00:02]} 14. exd5 {[%emt 0:00:08]} Bf5 {[%emt 0:00:15]} 15. Qd2 {[%emt 0:00:20]} e4 {[%emt 0:09:09]} 16. Bxb6 {[%emt 0:39:01]} Qxb6 {[%emt 0:00:04]} 17. Nxe4 {[%emt 0:00:09]} Bxe4 {[%emt 0:05:39]} 18. Bxe4 {[%emt 0:00:28]} f5 {[%emt 0:00:02]} 19. Bf3 {[%emt 0:02:43]} f4 {[%emt 0:01:35]} 20. g4 {[%emt 0:00:53]} Rad8 {[%emt 0:00:52]} 21. Nc4 {[%emt 0:07:47]} Qa6 {[%emt 0:01:35]} 22. Rac1 {[%emt 0:00:22]} Nc6 {[%emt 0:00:47]} 23. Qd3 {[%emt 0:08:31]} Nd4 {[%emt 0:02:32]} 24. Rfe1 {[%emt 0:01:43]} Qf6 {[%emt 0:13:18]} 25. Ne5 {[%emt 0:03:25]} Qb6 {[%emt 0:10:30]} 26. Rc4 {[%emt 0:03:52]} Ne6 {[%emt 0:04:38]} 27. Nc6 {[%emt 0:04:02]} Nc5 {[%emt 0:00:53]} 28. Ne7+ {[%emt 0:02:24]} Kh8 {[%emt 0:00:46]} 29. Qc2 {[%emt 0:00:16]} Nd7 {[%emt 0:00:52]} 30. Re6 {[%emt 0:03:10]} Qxb2 {[%emt 0:01:38]} 31. Qxb2 {[%emt 0:00:02]} Bxb2 {[%emt 0:00:03]} 32. Rc7 {[%emt 0:00:27]} Ba3 {[%emt 0:02:20]} 33. d6 {[%emt 0:01:55]} (33. Rxb7 Nc5 34. Rc7 Nxe6 35. dxe6 Bxe7 (35... Rde8 36. Nc6 $17) 36. Rxe7 Rfe8 $17) 33... Nc5 $2 {[%emt 0:00:40]} ({Better is} 33... Ne5 $1 $14 34. Rxe5 Bxd6) 34. Rxg6 $1 $18 {[%emt 0:02:30]} (34. Re5 Nd7 35. Re6 (35. Rxa5 Bxd6 36. Rxb7 Bxe7 $17) 35... Ne5 36. Rxe5 Bxd6 $16) 34... Na6 {[%emt 0:13:46]} (34... hxg6 $2 35. Nxg6+ Kg8 36. Bd5+ $18 (36. Bxb7 $2 Rf6 $19) (36. Bxb7 $2 Rf6 $19)) 35. Rxb7 $1 {[%emt 0:00:02]} Rxd6 {[%emt 0:00:21]} (35... hxg6 $2 36. Nxg6+ Kg8 37. Bd5+ $18) (35... Nc5 $2 36. Ra7 Rd7 37. Rxd7 (37. Rxa5 hxg6 38. Nxg6+ Kg7 $14) 37... Nxd7 38. Rh6 $18) 36. Rxd6 {[%emt 0:00:32]} Bxd6 {[%emt 0:00:02]} 37. Nf5 {[%emt 0:00:24]} Bc5 {[%emt 0:00:21]} 38. Rb5 {[%emt 0:01:34]} Bb4 {[%emt 0:00:05]} 39. Be4 {[%emt 0:01:04]} Re8 {[%emt 0:00:22]} 40. f3 {[%emt 0:00:44]} Nc5 {[%emt 0:00:11]} 41. Nd6 {[%emt 0:15:12]} Re6 $2 {[%emt 0:01:38]} (41... Rf8 $16) 42. Rb6 {[%emt 0:05:34]} (42. Rb8+ $142 Kg7 43. Ne8+ Kh6 44. Bf5) 42... Kg7 $18 {[%emt 0:00:47]} 43. Bd5 {[%emt 0:00:44]} Re1+ {[%emt 0:05:27]} 44. Kg2 {[%emt 0:00:02]} Kf6 {[%emt 0:00:27]} 45. Nc4+ {[%emt 0:04:52]} (45. Ne4+ $16 Ke5 46. Bc6) 45... Kg7 {[%emt 0:00:04]} (45... Kg5 $11) 46. Nxa5 $1 $16 Nd3 {[%emt 0:04:32]} ({Don't play} 46... Bxa5 47. Rb5) 47. Rb7+ {[%emt 0:02:59]} Kh6 {[%emt 0:02:52] [#]} 48. Nc6 $1 {[%emt 0:02:40]} Bc5 {[%emt 0:00:02]} 49. Bc4 {[%emt 0:01:16]} Re2+ {[%emt 0:07:02]} 50. Kh3 {[%emt 0:00:02]} Rf2 {[%emt 0:00:02] [#]} 51. Bxd3 {[%emt 0:02:05]} (51. g5+ $1 $16 Kxg5 52. Rg7+ (52. Bxd3 Rxf3+ 53. Kg2 Rxd3 $11) 52... Kf6 53. Rxh7 Rxf3+ 54. Kh4 (54. Kg4 Re3 $16)) 51... Rxf3+ $14 {[%emt 0:00:01]} 52. Kg2 {[%emt 0:00:09]} Rxd3 {[%emt 0:00:03]} 53. Ne5 {[%emt 0:00:23]} (53. Rf7 $14) 53... Re3 $11 {[%emt 0:01:41]} 54. Nf3 {[%emt 0:01:03]} Re2+ $1 {[%emt 0:00:19]} 55. Kh3 {[%emt 0:00:01]} Re3 $1 {[%emt 0:00:02]} 56. Kg2 {[%emt 0:00:29]} Re2+ $1 {[%emt 0:00:02]} 57. Kh3 {[%emt 0:00:04]} Re3 $1 {[%emt 0:00:03]} 58. g5+ {[%emt 0:01:06]} Kh5 $1 {[%emt 0:00:01]} 59. Rxh7+ {[%emt 0:00:09]} Kg6 {[%emt 0:00:01]} 60. Rh6+ {[%emt 0:01:13]} Kf5 {[%emt 0:00:01]} 61. Rf6+ {[%emt 0:00:10]} Ke4 {[%emt 0:00:02]} 62. Kg4 {[%emt 0:00:10]} Rxf3 {[%emt 0:00:03]} 63. Re6+ {[%emt 0:01:09]} Kd5 {[%emt 0:00:01]} 64. Kxf3 {[%emt 0:00:19]} Kxe6 {[%emt 0:00:02]} 65. Ke4 {[%emt 0:00:37]} (65. Kxf4 $5 Bd6+ $8 66. Ke4 Bxh2 67. a5 $11) 65... f3 {[%emt 0:01:36]} 66. Kxf3 {[%emt 0:00:05]} Kf5 $1 {[%emt 0:00:01]} 67. h4 {[%emt 0:00:09]} Bb4 {[%emt 0:00:01]} 68. Ke2 {[%emt 0:00:45]} Ba5 {[%emt 0:00:02]} 69. Kd3 {[%emt 0:00:39]} Be1 {[%emt 0:00:03]} 70. Kc4 {[%emt 0:00:43]} 1/2-1/2

[Event "Smuk Skak GM Tournament 2024"]
[Site "Skanderborg"]
[Date "2024.08.19"]
[Round "3.1"]
[White "Fromm, Marius"]
[Black "Pajeken, Jakob Leon"]
[Result "1-0"]
[ECO "A47"]
[WhiteElo "2447"]
[BlackElo "2416"]
[Annotator "TA"]
[PlyCount "109"]
[EventDate "2024.08.11"]
[EventType "tourn"]
[EventCountry "DEN"]
[SourceTitle "playchess.com"]
[Source "ChessBase"]
[SourceQuality "1"]
[TimeControl "40/5400+30:1800+30"]

{[%evp 36,109,88,65,61,91,67,61,64,50,52,45,42,37,57,60,50,56,52,55,66,52,65,56,80,90,98,98,138,113,219,220,194,193,247,240,241,241,354,389,390,390,370,375,389,341,379,362,376,271,270,269,268,208,693,247,236,0,687,650,1710,1585,1471,1013,1291,1116,1127,1066,29974,29972,29978,29979,29989,29990,29995,29991]} 1. c4 {[%emt 0:00:03]} Nf6 {[%emt 0:02:01]} 2. Nf3 {[%emt 0:00:21]} b6 {[%emt 0:03:47]} 3. g3 {[%emt 0:02:20]} Bb7 {[%emt 0:00:25]} 4. Bg2 {[%emt 0:00:05]} c5 {[%emt 0:00:23]} 5. d4 {[%emt 0:02:24]} cxd4 {[%emt 0:00:40]} 6. Qxd4 {[%emt 0:00:05]} Nc6 {[%emt 0:00:28]} 7. Qf4 {[%emt 0:02:39]} g6 {[%emt 0:02:56]} 8. O-O {[%emt 0:04:23]} Bg7 {[%emt 0:00:45]} 9. Nc3 {[%emt 0:00:15]} Rc8 {[%emt 0:04:13]} 10. b3 {[%emt 0:17:00] A30: Symmetrical English: Double Fianchetto and Hedgehog.} O-O {[%emt 0:01:55]} 11. Bb2 {[%emt 0:08:16]} d5 {[%emt 0:06:26]} 12. Rad1 {[%emt 0:08:48]} e6 {[%emt 0:07:24]} 13. Nb5 $146 {[%emt 0:10:59]} ({Predecessor:} 13. Ba3 Re8 14. Nb5 Ne4 15. cxd5 exd5 16. Nd6 Nxd6 17. Rxd5 Nd4 18. Rxd4 Bxd4 19. Bxd6 {0-1 Teofilovic,V (2285)-Drazic,S (2495) Djakovo op-A 2005 (9)}) 13... Nh5 {[%emt 0:09:54]} 14. Qd2 {[%emt 0:01:51]} a6 {[%emt 0:02:49]} 15. Bxg7 {[%emt 0:10:58]} Nxg7 {[%emt 0:00:47]} 16. cxd5 {[%emt 0:09:54]} Ne7 {[%emt 0:08:45]} 17. Nc3 {[%emt 0:06:09]} Nxd5 {[%emt 0:01:09]} 18. Nxd5 {[%emt 0:01:48]} Bxd5 {[%emt 0:03:06]} 19. Qb2 {[%emt 0:02:07]} Qe7 {[%emt 0:01:38]} 20. Ne5 {[%emt 0:00:54]} Bxg2 {[%emt 0:01:22]} 21. Kxg2 {[%emt 0:00:01]} (21. Rd7 Qe8 22. Kxg2 f6 $19) 21... Rc7 {[%emt 0:07:00]} 22. Rd2 {[%emt 0:00:37]} f6 {[%emt 0:02:16]} 23. Nc4 {[%emt 0:01:27]} b5 {[%emt 0:03:50]} 24. Nd6 {[%emt 0:00:51]} Rd8 {[%emt 0:03:37]} 25. Rfd1 {[%emt 0:00:02]} Rcd7 $1 {[%emt 0:00:49]} 26. Ne4 $1 {[%emt 0:00:09]} Rxd2 {[%emt 0:00:38]} 27. Rxd2 {[%emt 0:00:02]} Rxd2 {[%emt 0:00:18]} 28. Qxd2 {[%emt 0:00:02]} f5 {[%emt 0:07:39]} 29. Ng5 {[%emt 0:03:32]} Ne8 {[%emt 0:02:18]} 30. h4 {[%emt 0:00:59]} Nc7 {[%emt 0:02:36]} 31. Qc3 {[%emt 0:01:18]} e5 {[%emt 0:04:17]} 32. Qc6 {[%emt 0:00:40]} e4 {[%emt 0:01:07]} (32... Qd8 $16 {was worth a try.}) 33. a4 $18 {[%emt 0:00:39]} bxa4 {[%emt 0:02:14]} 34. bxa4 {[%emt 0:00:11]} e3 {[%emt 0:04:52]} (34... h6 $142) 35. f4 $18 {[%emt 0:01:14]} Qd8 {[%emt 0:01:13]} 36. Kh2 {[%emt 0:01:46]} Qd2 {[%emt 0:01:47]} (36... a5 $142 37. Qb6 Qd7) 37. Qc4+ $18 {[%emt 0:01:12]} (37. Qxc7 Qxe2+ 38. Kh1 Qe1+ 39. Kh2 Qf2+ 40. Kh3 Qf1+ 41. Kh2 Qf2+ 42. Kh1 Qf1+ 43. Kh2 Qf2+ $11) 37... Kh8 {[%emt 0:00:03]} 38. h5 {[%emt 0:01:31]} (38. Qxc7 Qxe2+ 39. Kh3 Qf1+ 40. Kh2 Qe2+ 41. Kg1 Qf2+ 42. Kh1 Qf1+ 43. Kh2 Qf2+ 44. Kh3 Qf1+ 45. Kh2 $11) 38... gxh5 {[%emt 0:01:22]} 39. Nf7+ {[%emt 0:01:00]} (39. Qxc7 Qxe2+ 40. Kh1 (40. Kg1 Qf2+ 41. Kh1 Qe1+ 42. Kh2 Qe2+ 43. Kh1 Qd1+ 44. Kg2 Qe2+ 45. Kh3 Qg4+ 46. Kg2 Qe2+ 47. Kh1 Qd1+ 48. Kh2 Qe2+ $11) 40... Qf1+ 41. Kh2 Qe2+ 42. Kh1 (42. Kg1 Qd1+ 43. Kg2 Qe2+ 44. Kh3 Qg4+ 45. Kh2 Qe2+ $11) 42... Qf1+ 43. Kh2 Qe2+ $11) 39... Kg7 {[%emt 0:00:17] [#]} 40. Ne5 $1 {[%emt 0:00:02]} (40. Qxc7 Qxe2+ 41. Kh3 Qg4+ 42. Kg2 Qe2+ 43. Kh1 Kf6 $11) 40... Nd5 {[%emt 0:00:52]} 41. Qxa6 {[%emt 0:31:45]} Nf6 {[%emt 0:08:42]} 42. Qc4 {[%emt 0:00:00]} Ng4+ {[%emt 0:04:14]} 43. Kg2 {[%emt 0:00:00]} Nxe5 {[%emt 0:12:53]} 44. fxe5 {[%emt 0:00:00]} Qa5 $2 {[%emt 0:00:50]} (44... h6 45. Kf3 Qd1) 45. Qd4 $2 {[%emt 0:00:00]} (45. Qb5 Qa8+ 46. Kh2) 45... Qd2 $18 {[%emt 0:01:05]} 46. Qc4 $2 {[%emt 0:00:00]} (46. Qa7+ Kg8 47. Qb8+ Kf7 48. Qc7+ Kg8 49. Qc8+ Kg7 50. Qb7+ (50. Qxf5 Qxe2+ 51. Kh3 Qe1 $11) 50... Kf8 51. Qb5 (51. Qxh7 Qxe2+ 52. Kh3 Qg4+ 53. Kh2 Qg5 $11)) 46... Qa5 $1 $18 {[%emt 0:00:35]} 47. Qb5 {[%emt 0:00:00]} Qe1 {[%emt 0:00:57]} 48. Qd7+ {[%emt 0:00:00]} Kg8 {[%emt 0:00:30]} 49. Qe6+ {[%emt 0:00:00]} (49. Qxf5 Qxe2+ 50. Kh3 Qe1 $11) 49... Kg7 {[%emt 0:00:33]} 50. Qf6+ {[%emt 0:00:00]} ({Weaker is} 50. Qxf5 Qxe2+ 51. Kh3 Qd1 $11) 50... Kg8 {[%emt 0:00:00]} 51. Qg5+ {[%emt 0:00:00]} ({Worse is} 51. Qxf5 Qxe2+ 52. Kh3 Qd1 53. Qe6+ Kf8 54. Qf6+ Kg8 55. Qe6+ Kh8 56. Qf6+ Kg8 57. Qe6+ $11) 51... Kh8 {[%emt 0:00:39]} 52. Qxe3 {[%emt 0:00:00]} h4 {[%emt 0:00:51]} 53. e6 {[%emt 0:00:00]} h3+ {[%emt 0:00:38]} 54. Kh2 $1 {[%emt 0:00:00]} f4 {[%emt 0:00:50]} 55. gxf4 {[%emt 0:00:00]} ({And not} 55. Qxf4 Qxe2+ 56. Kxh3 Qxe6+ 57. Kh4 Qe7+ 58. Kh5 Qc5+ 59. Kg4 (59. Qg5 Qc6 $11) 59... Qc8+ 60. Qf5 Qe8 $14) 1-0

[Event "Smuk Skak GM Tournament 2024"]
[Site "Skanderborg"]
[Date "2024.08.19"]
[Round "3.2"]
[White "Solodovnichenko, Yuri"]
[Black "Aczel, Gergely"]
[Result "1-0"]
[ECO "A50"]
[WhiteElo "2491"]
[BlackElo "2485"]
[Annotator "TA"]
[PlyCount "71"]
[EventDate "2024.08.11"]
[EventType "tourn"]
[EventCountry "DEN"]
[SourceTitle "playchess.com"]
[Source "ChessBase"]
[SourceQuality "1"]
[TimeControl "40/5400+30:1800+30"]

{[%evp 9,71,2,4,-29,-12,-8,10,4,12,22,17,8,10,16,9,13,64,55,113,93,87,117,133,67,77,75,84,90,89,85,66,26,16,28,54,64,42,51,39,61,39,35,50,50,69,58,56,62,87,82,85,65,76,77,650,619,29983,29984,29984,29985,29997,29997,29997,29998]} 1. d4 {[%emt 0:00:05]} Nf6 {[%emt 0:00:07]} 2. c4 {[%emt 0:00:05]} e6 {[%emt 0:00:04]} 3. Bf4 {[%emt 0:00:04]} d5 {[%emt 0:00:47]} 4. cxd5 {[%emt 0:00:24]} Nxd5 {[%emt 0:02:00]} 5. Bg3 {[%emt 0:00:21]} c5 {[%emt 0:01:08]} 6. e4 {[%emt 0:00:07][%cal Be2e4,Be4e5][%mdl 32]} Nf6 {[%emt 0:00:29][%csl LRd4,LRe4]} 7. Nd2 {[%emt 0:00:05]} Nc6 {[%emt 0:02:34]} 8. dxc5 {[%emt 0:01:27] The position is equal.} Bxc5 {[%emt 0:00:30]} 9. e5 {[%emt 0:00:46]} Nd5 {[%emt 0:00:49]} 10. Ngf3 {[%emt 0:00:46]} O-O {[%emt 0:11:30]} 11. Bd3 {[%emt 0:05:57]} b6 {[%emt 0:25:55]} 12. a3 {[%emt 0:22:15] Wards off Ndb4} f5 {[%emt 0:16:32]} (12... Nd4 $11) 13. exf6 $14 {[%emt 0:03:17]} Qxf6 {[%emt 0:05:37]} (13... Nf4 $14 14. Be4 Nd3+ 15. Bxd3 Qxd3) 14. Ne4 {[%emt 0:05:37]} Qxb2 {[%emt 0:01:45]} 15. O-O {[%emt 0:00:14]} Nd4 {[%emt 0:02:51] [#]} 16. Nfg5 {[%emt 0:12:49]} (16. Ne5 $1 $16) 16... h6 {[%emt 0:12:41]} 17. Nxc5 {[%emt 0:13:32]} bxc5 {[%emt 0:00:01] [#]} 18. Ne4 {[%emt 0:01:07]} Nc3 {[%emt 0:00:15]} 19. Nxc3 {[%emt 0:03:52]} Qxc3 {[%emt 0:00:02]} 20. Rc1 {[%emt 0:05:45]} Qxa3 {[%emt 0:01:02]} 21. Bd6 {[%emt 0:04:28][%csl LRc5,LRf8][%cal Od6c5] This pair of bishops is nice.} Ba6 $1 {[%emt 0:00:24]} 22. Bxa6 {[%emt 0:03:54]} Qxa6 {[%emt 0:00:45]} 23. Bxf8 {[%emt 0:00:07]} Ne2+ {[%emt 0:01:04]} 24. Kh1 {[%emt 0:00:01]} Nxc1 {[%emt 0:00:08]} (24... Rxf8 $2 {loses.} 25. Rxc5 Nf4 26. Rc3 $18) 25. Bxg7 {[%emt 0:00:11]} (25. Bxc5 Nd3 26. Be3 Qc4) 25... Kxg7 {[%emt 0:02:24]} 26. Qg4+ {[%emt 0:00:49]} Kh7 {[%emt 0:07:59][%cal Ra6f1]} 27. Qe4+ $1 {[%emt 0:01:14]} Kg7 {[%emt 0:00:02][%cal Ra6f1]} 28. Qe5+ {[%emt 0:00:44]} Kh7 {[%emt 0:00:03]} 29. Rxc1 $16 {[%emt 0:02:09][%mdl 4096] Endgame. KQR-KQR} Rc8 {[%emt 0:00:06]} 30. Ra1 {[%emt 0:01:42] White is more active.} (30. Rxc5 $2 Qf1#) 30... Qb7 {[%emt 0:02:45]} 31. Qxe6 {[%emt 0:00:27] Black must now prevent Rd1.} c4 $2 {[%emt 0:00:29][%mdl 8192] A mistake that costs the game.} (31... Rg8 $16 32. Qf5+ Kh8) 32. Rd1 $18 {[%emt 0:01:14]} Rc7 {[%emt 0:00:20] Against Rd7+} 33. Qf5+ {[%emt 0:00:19] White mates.} Kg7 {[%emt 0:00:08]} 34. Rd6 {[%emt 0:00:36]} Re7 {[%emt 0:03:34]} 35. Qf6+ {[%emt 0:00:29]} Kh7 {[%emt 0:00:13]} 36. Qg6+ {[%emt 0:00:11] Weighted Error Value: White=0.08 (flawless) /Black=0.43.  Loses game:     	---       	Black=1      Mistake:       	White=1     	Black=2      Inaccurate:     	White=1     	Black=1      OK:         	White=15    	Black=7      Best:        	White=5     	Black=3      Strong:       	White=1     	Black=1} 1-0

[Event "Smuk Skak GM Tournament 2024"]
[Site "Skanderborg"]
[Date "2024.08.19"]
[Round "3.3"]
[White "Kosakowski, Jakub"]
[Black "Thybo, Jesper Sondergaard"]
[Result "1/2-1/2"]
[ECO "C45"]
[WhiteElo "2501"]
[BlackElo "2554"]
[Annotator "RC"]
[PlyCount "108"]
[EventDate "2024.08.11"]
[EventType "tourn"]
[EventCountry "DEN"]
[SourceTitle "playchess.com"]
[Source "ChessBase"]
[SourceQuality "1"]
[TimeControl "40/5400+30:1800+30"]

1. e4 {[%emt 0:00:08]} e5 {[%emt 0:00:10]} 2. Nf3 {[%emt 0:00:43]} Nc6 {[%emt 0:00:11]} 3. d4 {[%emt 0:00:27]} exd4 {[%emt 0:00:20]} 4. Nxd4 {[%emt 0:00:08]} Nf6 {[%emt 0:00:16]} 5. Nxc6 {[%emt 0:00:41]} bxc6 {[%emt 0:00:05]} 6. Bd3 {[%emt 0:00:42]} d5 {[%emt 0:00:40]} 7. exd5 {[%emt 0:00:13]} cxd5 {[%emt 0:00:48]} 8. O-O {[%emt 0:00:27]} Be7 {[%emt 0:01:44]} 9. c4 {[%emt 0:00:54]} O-O {[%emt 0:24:16]} 10. Nc3 {[%emt 0:00:52]} Bb7 {[%emt 0:12:54]} 11. Qb3 {[%emt 0:00:45]} dxc4 {[%emt 0:13:12]} 12. Bxh7+ {[%emt 0:01:50]} Kxh7 {[%emt 0:00:33]} 13. Qxb7 {[%emt 0:00:08]} Qd7 {[%emt 0:05:24]} 14. Rd1 {[%emt 0:11:49]} Bd6 {[%emt 0:02:33]} 15. Bf4 {[%emt 0:35:39]} Rfb8 {[%emt 0:01:09]} 16. Qf3 {[%emt 0:01:19]} Qf5 {[%emt 0:12:31]} 17. Rd4 {[%emt 0:03:17]} g5 {[%emt 0:05:30]} 18. Bxd6 {[%emt 0:05:40]} Qxf3 {[%emt 0:00:07]} 19. gxf3 {[%emt 0:00:06]} cxd6 {[%emt 0:00:01]} 20. Rxd6 {[%emt 0:00:44]} Kg7 {[%emt 0:00:08]} 21. Rb1 {[%emt 0:02:19]} Rd8 {[%emt 0:03:40]} 22. Rc6 {[%emt 0:07:14]} Rac8 {[%emt 0:02:40]} 23. Rxc8 {[%emt 0:01:40]} Rxc8 {[%emt 0:00:04]} 24. Rc1 {[%emt 0:02:24]} Rd8 {[%emt 0:03:57]} 25. Rd1 {[%emt 0:10:04]} Rb8 {[%emt 0:00:25]} 26. Rd2 {[%emt 0:00:12]} Nh5 {[%emt 0:01:20]} 27. Ne2 {[%emt 0:04:39]} Kg6 {[%emt 0:00:27]} 28. Kf1 {[%emt 0:00:50]} f6 {[%emt 0:02:03]} 29. Rc2 {[%emt 0:00:19]} Ng7 {[%emt 0:01:06]} 30. f4 {[%emt 0:02:30]} g4 {[%emt 0:00:16]} 31. f5+ {[%emt 0:01:47]} Kg5 {[%emt 0:01:51]} 32. Rxc4 {[%emt 0:01:57]} Rxb2 {[%emt 0:00:12]} 33. Ra4 {[%emt 0:02:12]} Nh5 {[%emt 0:05:53]} 34. Nd4 {[%emt 0:01:53]} Rb1+ {[%emt 0:00:29]} 35. Ke2 {[%emt 0:00:03]} Nf4+ {[%emt 0:00:32]} 36. Ke3 {[%emt 0:01:19]} Nd5+ {[%emt 0:00:18]} 37. Kd2 {[%emt 0:00:29]} Rb2+ {[%emt 0:00:38]} 38. Nc2 {[%emt 0:00:04]} Rb7 {[%emt 0:00:22]} 39. Ra5 {[%emt 0:00:56]} Rd7 {[%emt 0:00:42]} 40. Ne3 {[%emt 0:00:34]} Nf4+ {[%emt 0:00:31]} 41. Ke1 {[%emt 0:06:03]} Rh7 {[%emt 0:04:07]} 42. Nd5 {[%emt 0:01:06]} Nxd5 {[%emt 0:13:51]} 43. Rxd5 {[%emt 0:00:09]} Rxh2 {[%emt 0:00:33]} 44. Rd7 {[%emt 0:01:01]} Kxf5 {[%emt 0:00:49]} 45. Rxa7 {[%emt 0:00:07]} Kf4 {[%emt 0:01:09]} 46. Kf1 {[%emt 0:03:33]} f5 {[%emt 0:00:31]} 47. Ra4+ {[%emt 0:03:55]} Kg5 {[%emt 0:00:23]} 48. Ra5 {[%emt 0:01:44]} Rh3 {[%emt 0:01:51]} 49. Kg2 {[%emt 0:00:08]} Rc3 {[%emt 0:00:20]} 50. Ra8 {[%emt 0:00:43]} Rc2 {[%emt 0:00:40]} 51. Rg8+ {[%emt 0:01:14]} Kf6 {[%emt 0:01:05]} 52. Rf8+ {[%emt 0:00:14]} Kg5 {[%emt 0:00:32]} 53. Rg8+ {[%emt 0:00:07]} Kf6 {[%emt 0:00:36]} 54. Rf8+ {[%emt 0:00:09]} Ke5 1/2-1/2